[Event "Prague Festival-Challengers 2022"]
[Site "Prague"]
[Date "2022.06.15"]
[Round "7.5"]
[White "Krzyzanowski, Marcin"]
[Black "Sasikiran, Krishnan"]
[Result "1/2-1/2"]
[ECO "C01"]
[WhiteElo "2535"]
[BlackElo "2651"]
[Annotator "TA"]
[PlyCount "37"]
[EventDate "2022.06.07"]
[EventType "tourn"]
[EventCountry "CZE"]
[SourceTitle "playchess.com"]
[Source "ChessBase"]
[SourceQuality "1"]
[TimeControl "40/5400+30:1800+30"]

{[%evp 13,37,0,0,2,8,0,0,0,0,0,0,0,0,0,0,0,0,0,0,0,0,0,0,0,0,0]} 1. e4 {[%emt 0:00:03]} e6 {[%emt 0:00:13]} 2. d4 {[%emt 0:00:06]} d5 {[%emt 0:00:07]} 3. Nc3 {[%emt 0:00:06]} Bb4 {[%emt 0:00:27]} 4. exd5 {[%emt 0:00:14]} exd5 {[%emt 0:00:34]} 5. Bd3 {[%emt 0:00:05]} Nf6 {[%emt 0:04:20]} 6. Nge2 {[%emt 0:01:01]} O-O {[%emt 0:00:24]} 7. O-O {[%emt 0:00:24]} Re8 {[%emt 0:02:21] The position is equal. Nowadays more popular than 7...c6.} 8. Ng3 {[%emt 0:01:44] C01: French: Exchange Variation.} c6 {[%emt 0:07:51]} 9. h3 {[%emt 0:03:24]} Nbd7 {[%emt 0:08:39][%cal Bb8d7,Bd7f8,Bf8g6,Bg6h4][%mdl 32]} 10. Qf3 {[%emt 0:04:52]} Nf8 {[%emt 0:05:19]} 11. Nce2 {[%emt 0:02:00]} Ng6 {[%emt 0:04:32]} 12. c3 {[%emt 0:10:09]} Be7 {[%emt 0:03:53] [#]} 13. Nf5 $146 {[%emt 0:17:33]} ({Predecessor:} 13. Nf4 Bd7 14. Be3 Nh4 15. Qd1 Bd6 16. Re1 {½-½ (16) Yudasin,L (2540)-Naumkin,I (2435) Montecatini Terme 1998}) 13... Bxf5 {[%emt 0:06:00]} 14. Qxf5 {[%emt 0:00:31]} Nh4 {[%emt 0:10:29]} 15. Qf4 {[%emt 0:00:50]} Ng6 {[%emt 0:00:24]} 16. Qf3 {[%emt 0:04:21]} Nh4 {[%emt 0:02:16]} 17. Qf4 {[%emt 0:00:44]} Ng6 {[%emt 0:03:48]} 18. Qf3 {[%emt 0:00:07]} Nh4 {[%emt 0:03:06]} 19. Qf4 {A rather calm draw.  Weighted Error Value: White=0.01 (flawless) /Black=0.00 (flawless)} 1/2-1/2

[Event "Prague Festival-Challengers 2022"]
[Site "Prague"]
[Date "2022.06.16"]
[Round "8.1"]
[White "Sasikiran, Krishnan"]
[Black "Abdusattorov, Nodirbek"]
[Result "1/2-1/2"]
[ECO "E20"]
[WhiteElo "2651"]
[BlackElo "2661"]
[Annotator "TA"]
[PlyCount "99"]
[EventDate "2022.06.07"]
[EventType "tourn"]
[EventCountry "CZE"]
[SourceTitle "playchess.com"]
[Source "ChessBase"]
[SourceQuality "1"]
[TimeControl "40/5400+30:1800+30"]

{[%evp 10,99,18,0,12,10,17,7,7,7,23,0,36,6,28,15,24,3,0,-3,-14,-10,-28,0,0,0,-8,-44,-7,-20,0,0,0,0,25,22,19,13,20,27,27,31,36,0,95,10,12,14,44,16,16,16,15,16,16,16,16,17,17,18,18,18,18,18,18,18,18,18,17,17,17,0,33,34,33,33,33,33,30,18,18,15,18,18,28,8,8,8,8,8,8,8]} 1. d4 {[%emt 0:00:03]} Nf6 {[%emt 0:00:12]} 2. c4 {[%emt 0:00:09]} e6 {[%emt 0:00:10]} 3. Nc3 {[%emt 0:00:12]} Bb4 {[%emt 0:00:36]} 4. f3 {[%emt 0:00:16]} d5 {[%emt 0:00:48]} 5. a3 {[%emt 0:00:12]} Be7 {[%emt 0:00:08]} 6. e4 {[%emt 0:00:49]} dxe4 {[%emt 0:00:06] E20: Nimzo-Indian: 4 g3 and 4 f3.} 7. fxe4 {[%emt 0:00:13]} c5 {[%emt 0:00:18]} 8. d5 {[%emt 0:00:45]} exd5 {[%emt 0:00:09]} 9. exd5 {[%emt 0:02:18]} O-O {[%emt 0:00:07]} 10. Bd3 {[%emt 0:02:07]} Bg4 {[%emt 0:05:19]} 11. Nge2 {[%emt 0:01:46]} Nbd7 {[%emt 0:01:58]} 12. O-O {[%emt 0:03:21] [#]} Bd6 $146 {[%emt 0:04:31]} ({Predecessor:} 12... Re8 13. Qc2 h6 14. Bf4 Nh5 15. Ng3 Nxf4 16. Rxf4 Ne5 17. Re1 Nxd3 18. Qxd3 Bd7 {1-0 (26) Amartuvshin,G (2350)-Nihal,S (2620) Chess.com INT 2020}) 13. Qc2 {[%emt 0:11:15]} Re8 {[%emt 0:05:00]} 14. Ng3 {[%emt 0:07:01]} Qb8 {[%emt 0:03:48]} 15. Bd2 {[%emt 0:21:08]} Bxg3 {[%emt 0:03:00]} 16. hxg3 {[%emt 0:00:10]} Qxg3 {[%emt 0:00:06] White must now prevent ...Ne5.} 17. Bf4 {[%emt 0:08:27]} Qh4 {[%emt 0:00:06]} 18. Qf2 {[%emt 0:00:36]} (18. Nb5 $5 {[%cal Rb5c7]}) 18... Qh5 {[%emt 0:11:45]} 19. Rfe1 {[%emt 0:06:37]} b6 {[%emt 0:05:12]} 20. Nb5 {[%emt 0:08:05]} Ne5 {[%emt 0:00:14]} 21. Bf1 {[%emt 0:01:15]} Bd7 {[%emt 0:14:39]} (21... Ng6 $5 {[%cal Rf6e4]}) 22. Nd6 {[%emt 0:03:12]} Re7 {[%emt 0:04:46]} 23. b4 {[%emt 0:02:26]} Neg4 {[%emt 0:05:41]} 24. Qf3 {[%emt 0:04:33]} Rxe1 {[%emt 0:00:05]} 25. Rxe1 {[%emt 0:00:03]} cxb4 {[%emt 0:00:11]} 26. axb4 {[%emt 0:00:41]} b5 {[%emt 0:00:05]} (26... a5 $11 {keeps the balance.}) 27. Re7 {[%emt 0:03:59] White is more active.} (27. Nxb5 $16 {Threatens to win with Nd6.} Bxb5 28. cxb5) 27... bxc4 $11 {[%emt 0:08:27]} 28. Bxc4 {[%emt 0:00:29]} Rb8 {[%emt 0:00:48]} 29. b5 {[%emt 0:01:38]} ({Stronger than} 29. Rxf7 Rxb4 30. Qf1 Qg6 $17) 29... Rf8 {[%emt 0:00:20]} 30. Qh3 {[%emt 0:03:06]} Qg6 {[%emt 0:00:01] [#] Strongly threatening ...Qb1+.} 31. Bd3 {[%emt 0:02:16] Inhibits Qb1+.} Nf2 $1 {[%emt 0:00:07]} 32. Bxg6 {[%emt 0:04:28] Dancing on a razor blade. This bishop pair is nice.} Nxh3+ {[%emt 0:00:07]} 33. gxh3 {[%emt 0:00:04][%cal Rg6f7]} hxg6 {[%emt 0:00:49]} 34. Be5 {[%emt 0:01:28] [#] aiming for Bxf6.} Bxh3 {[%emt 0:09:59]} 35. Bxf6 {[%emt 0:00:42]} gxf6 {[%emt 0:00:02]} 36. Rxa7 {[%emt 0:00:12][%mdl 4096] Endgame And now b6 would win. KRB-KRN} Rd8 {[%emt 0:03:31]} 37. Nxf7 {[%emt 0:01:16]} Rxd5 {[%emt 0:00:53]} 38. b6 {[%emt 0:00:07] b7 is the strong threat.} Bc8 {[%emt 0:04:23]} 39. Nh6+ {[%emt 0:01:05]} Kf8 {[%emt 0:00:22]} 40. Ra8 {[%emt 0:00:00] White wants to mate with b7.} Kg7 {[%emt 0:00:00]} 41. Rxc8 $14 {[%emt 0:01:32] KRN-KR} Rb5 {[%emt 0:00:28]} 42. Ng4 {[%emt 0:00:16]} Rxb6 {[%emt 0:00:07]} 43. Rc7+ {[%emt 0:00:07]} Kf8 {[%emt 0:00:18]} 44. Kf2 {[%emt 0:01:21]} Re6 {[%emt 0:00:04]} 45. Kf3 {[%emt 0:00:49]} Re7 {[%emt 0:00:06]} 46. Rc6 {[%emt 0:01:11]} Kg7 {[%emt 0:00:04]} 47. Rxf6 {[%emt 0:02:10]} Rf7 {[%emt 0:00:02] The position is equal.} 48. Rxf7+ {[%emt 0:00:15]} Kxf7 {[%emt 0:00:02]} 49. Kf4 {[%emt 0:00:04]} g5+ {[%emt 0:00:02]} 50. Kxg5 {[%emt 0:00:11] Weighted Error Value: White=0.10 (very precise) /Black=0.11 (very precise)} 1/2-1/2

[Event "Prague Festival-Challengers 2022"]
[Site "Prague"]
[Date "2022.06.16"]
[Round "8.2"]
[White "Hracek, Zbynek"]
[Black "Warmerdam, Max"]
[Result "0-1"]
[ECO "B90"]
[WhiteElo "2570"]
[BlackElo "2614"]
[Annotator "TA"]
[PlyCount "110"]
[EventDate "2022.06.07"]
[EventType "tourn"]
[EventCountry "CZE"]
[SourceTitle "playchess.com"]
[Source "ChessBase"]
[SourceQuality "1"]
[TimeControl "40/5400+30:1800+30"]

{[%evp 14,110,19,16,56,31,59,0,0,-8,11,0,0,0,0,0,11,-2,7,-91,-85,-94,-84,-72,-84,-101,-69,-85,-87,-78,-50,-126,-114,-100,-19,-13,-24,-20,-16,-14,-20,-66,-77,-75,-75,-114,-104,-135,-94,-90,-32,-37,-25,-41,-39,-41,-36,-41,-47,-39,-40,-86,-83,-106,-109,-130,-136,-283,-242,-262,-265,-267,-267,-253,-245,-536,-522,-545,-565,-560,-558,-552,-545,-581,-516,-581,0,-579,-570,-1131,-1593,-2246,-2716,-2972,-2468,-2007,-1683,-2337,-1515]} 1. e4 {[%emt 0:00:04]} c5 {[%emt 0:00:13]} 2. Nf3 {[%emt 0:00:07]} d6 {[%emt 0:00:29]} 3. d4 {[%emt 0:00:15]} cxd4 {[%emt 0:00:05]} 4. Nxd4 {[%emt 0:00:04]} Nf6 {[%emt 0:00:07]} 5. Nc3 {[%emt 0:00:04]} a6 {[%emt 0:00:27]} 6. f3 {[%emt 0:00:40]} e5 {[%emt 0:01:15]} 7. Nb3 {[%emt 0:00:06]} Be7 {[%emt 0:00:54]} 8. Be3 {[%emt 0:00:22]} h5 {[%emt 0:00:27] B90: Sicilian Najdorf: Unusual White 6th moves, 6 Be3 Ng4 and 6 Be3 e5.} 9. Qd2 {[%emt 0:01:00]} (9. Na4 $5 {[%cal Ra4b6]}) 9... Nbd7 $5 {[%emt 0:00:39][%mdl 4] A promising side line.} 10. Nd5 {[%emt 0:18:45]} ({White should play} 10. O-O-O $14) 10... Nxd5 $11 {[%emt 0:01:11] The position is equal.} 11. exd5 {[%emt 0:00:02] [#]} Nf6 $146 {[%emt 0:03:58]} ({Predecessor:} 11... b6 12. c4 a5 13. Rc1 h4 14. Be2 h3 15. g3 Nc5 16. Na1 Bf5 17. O-O g5 {½-½ (60) Lin,P (2018)-Liu,Y (1925) Zhengzhou 2019}) 12. Be2 {[%emt 0:06:59]} Bf5 {[%emt 0:01:57]} 13. a4 {[%emt 0:02:19]} O-O {[%emt 0:08:39]} 14. O-O {[%emt 0:05:56]} h4 {[%emt 0:02:09][%cal Bh5h4,Bh4h3][%mdl 32]} 15. c4 {[%emt 0:16:32]} a5 {[%emt 0:20:56]} 16. c5 {[%emt 0:04:26]} (16. Nc1 $11) 16... dxc5 $17 {[%emt 0:00:48]} 17. Rfd1 {[%emt 0:00:10]} Bd6 {[%emt 0:01:15]} 18. Rac1 {[%emt 0:06:13]} b6 {[%emt 0:01:25]} 19. Bg5 {[%emt 0:02:53]} h3 {[%emt 0:03:30]} 20. Rc4 {[%emt 0:10:33]} Re8 {[%emt 0:06:21] ...e4 is the strong threat.} 21. Bd3 {[%emt 0:05:14]} e4 {[%emt 0:11:08]} 22. Bxe4 {[%emt 0:03:40]} (22. fxe4 $15 Bc8 23. Rf1) 22... Bxe4 {[%emt 0:00:40]} ({Worse is} 22... Nxe4 23. fxe4 f6 24. exf5) 23. fxe4 {[%emt 0:00:06]} Qe7 {[%emt 0:04:26]} (23... Re5 $1 $17 {[%cal Of6e4]} 24. Re1 Qe7) 24. gxh3 $11 {[%emt 0:03:15]} Nxe4 {[%emt 0:00:20][%mdl 64] Discovered Attack} 25. Bxe7 {[%emt 0:00:05]} Nxd2 {[%emt 0:00:05]} 26. Nxd2 {[%emt 0:00:05]} Rxe7 {[%emt 0:00:33]} 27. Re4 {[%emt 0:01:44]} (27. Rg4 $1 $11) 27... Rxe4 $1 $15 {[%emt 0:02:52]} 28. Nxe4 {[%emt 0:00:01][%mdl 4096] Endgame KRB-KRN} Be5 {[%emt 0:00:06]} 29. Kg2 {[%emt 0:04:01]} Rd8 $1 {[%emt 0:00:27]} ({And not} 29... Bxb2 30. Rb1 Be5 31. Rxb6 $15) 30. Rd2 {[%emt 0:00:48]} f5 {[%emt 0:04:05]} 31. Nc3 {[%emt 0:00:04]} Kf7 {[%emt 0:00:09]} (31... Bd4 $1 $17 32. h4 Kf7) 32. Nb5 {[%emt 0:01:16]} Kf6 {[%emt 0:00:44][%cal Oe5d4]} 33. b3 {[%emt 0:03:14]} Bd4 {[%emt 0:08:50]} 34. d6 {[%emt 0:00:20]} Be5 {[%emt 0:01:43]} 35. h4 {[%emt 0:02:11]} Ke6 {[%emt 0:06:34][%cal Re5d6]} 36. Nc7+ $1 {[%emt 0:01:16]} Kd7 {[%emt 0:00:22]} 37. Nb5 {[%emt 0:00:14]} (37. Nd5 $1 $15 {deserves consideration.}) 37... Rh8 $17 {[%emt 0:01:33] Black keeps a firm grip on the game.} 38. Rd5 {[%emt 0:00:39] [#]} Bf6 {[%emt 0:00:07]} 39. Rxf5 {[%emt 0:02:45]} Rxh4 {[%emt 0:00:05]} 40. Rf2 {[%emt 0:00:00]} (40. Na3 $17) 40... Rb4 {[%emt 0:00:00]} 41. Rf3 {[%emt 0:06:05] [#]} c4 $1 {[%emt 0:00:43]} 42. bxc4 {[%emt 0:00:04]} Rxa4 {[%emt 0:10:09]} ({Inferior is} 42... Rxc4 43. Ra3 $17) 43. Rf4 {[%emt 0:00:04]} Ra2+ {[%emt 0:00:57]} 44. Kf3 $2 {[%emt 0:00:28]} (44. Kg1) 44... Rxh2 $19 {[%emt 0:00:54]} 45. Rf5 {[%emt 0:00:08]} Rc2 {[%emt 0:01:19]} 46. Rf4 {[%emt 0:00:04]} a4 {[%emt 0:03:51][%cal Oa4a3] And now ...a3! would win.} 47. Re4 {[%emt 0:00:11]} Kc6 {[%emt 0:02:36]} 48. Rf4 {[%emt 0:04:29]} Rd2 {[%emt 0:02:11][%cal Oa4a3] Hoping for ...a3!} 49. Re4 {[%emt 0:01:48]} Rc2 {[%emt 0:08:45]} 50. Rf4 $1 {[%emt 0:00:27]} Rh2 {[%emt 0:00:12] Black is clearly winning.} 51. Ke4 {[%emt 0:04:50]} Rh4 {[%emt 0:01:45]} 52. Nd4+ {[%emt 0:01:00]} Kc5 {[%emt 0:03:44] ( -> ...Rxf4+)} 53. Rxh4 {[%emt 0:00:06]} Bxh4 {[%emt 0:00:02]} 54. Kd3 {[%emt 0:00:13]} Bf6 {[%emt 0:00:55]} 55. Nb5 {[%emt 0:01:16]} Kc6 {[%emt 0:00:59] Weighted Error Value: White=0.48/Black=0.18 (very precise)} 0-1

[Event "Prague Festival-Challengers 2022"]
[Site "Prague"]
[Date "2022.06.16"]
[Round "8.3"]
[White "Keymer, Vincent"]
[Black "Stocek, Jiri"]
[Result "1/2-1/2"]
[ECO "A30"]
[WhiteElo "2667"]
[BlackElo "2533"]
[Annotator "TA"]
[PlyCount "131"]
[EventDate "2022.06.07"]
[EventType "tourn"]
[EventCountry "CZE"]
[SourceTitle "playchess.com"]
[Source "ChessBase"]
[SourceQuality "1"]
[TimeControl "40/5400+30:1800+30"]

{[%evp 26,131,38,37,58,27,27,27,27,16,22,8,8,0,0,0,8,0,0,0,8,12,7,11,11,11,19,-9,8,0,0,0,29,47,49,47,77,0,0,0,0,0,0,0,0,0,0,0,0,0,8,8,8,8,8,14,14,14,14,14,14,14,14,14,14,14,14,14,17,17,17,17,17,14,14,14,14,14,14,14,33,14,17,17,17,17,33,33,34,0,0,0,0,0,0,0,0,0,0,0,0,0,0,0,0,0,0,0]} 1. Nf3 {[%emt 0:00:04] Marin,M} Nf6 {[%emt 0:01:02]} 2. c4 {[%emt 0:00:05]} c5 {[%emt 0:00:40]} 3. Nc3 {[%emt 0:00:23]} e6 {[%emt 0:00:54]} 4. g3 {[%emt 0:09:10]} b6 {[%emt 0:01:05]} 5. Bg2 {[%emt 0:01:52]} Bb7 {[%emt 0:00:08]} 6. O-O {[%emt 0:00:06]} Be7 {[%emt 0:01:18]} 7. d4 {[%emt 0:00:21]} cxd4 {[%emt 0:00:21]} 8. Qxd4 {[%emt 0:06:20]} d6 {[%emt 0:04:03]} 9. Rd1 {[%emt 0:01:01]} a6 {[%emt 0:01:02]} 10. Bg5 {[%emt 0:07:19]} Nbd7 {[%emt 0:01:17]} 11. Qd2 {[%emt 0:02:36]} O-O {[%emt 0:09:06]} 12. Bf4 {[%emt 0:06:22]} Ne8 {[%emt 0:00:35]} 13. Rac1 {[%emt 0:06:46]} Rc8 {[%emt 0:19:19]} 14. b3 {[%emt 0:00:35]} h6 {[%emt 0:11:30] A30: Symmetrical English: Double Fianchetto and Hedgehog.} 15. Ne1 {[%emt 0:12:38] is the legacy move (15.h3).} Bxg2 {[%emt 0:00:41]} 16. Kxg2 {[%emt 0:00:19]} Qc7 {[%emt 0:03:44] White has an edge.} 17. f3 {[%emt 0:03:20]} Qb7 {[%emt 0:04:52]} 18. Ne4 {[%emt 0:03:20] [#]} Ndf6 $5 $146 {[%emt 0:08:34][%mdl 8] An interesting novelty.} ({Predecessor:} 18... Nc5 19. Nf2 b5 20. Ned3 Nf6 21. Nxc5 dxc5 22. Qc2 Rfd8 23. Nd3 Nd7 24. Nf2 Nf6 {0-1 (74) Georgiev,K (2645)-Marin,M (2583) Barbera del Valles 2009 CBM 131 Extra [Marin,M]}) 19. Nxf6+ {[%emt 0:11:06]} Nxf6 {[%emt 0:00:34]} 20. e4 {[%emt 0:00:13][%cal Be2e4,Be4e5,Be5e6][%mdl 32]} Rfd8 {[%emt 0:01:00]} 21. a4 {[%emt 0:01:08]} g5 {[%emt 0:10:09]} 22. Be3 {[%emt 0:00:28]} d5 {[%emt 0:00:50]} 23. cxd5 {[%emt 0:01:47]} Rxc1 {[%emt 0:00:44]} 24. Qxc1 {[%emt 0:02:03]} exd5 {[%emt 0:01:10]} 25. e5 {[%emt 0:00:52]} Nd7 {[%emt 0:01:09]} 26. Nd3 {[%emt 0:02:13][%cal Oh2h4]} Nc5 {[%emt 0:03:47]} 27. Bxc5 {[%emt 0:07:42]} bxc5 {[%emt 0:00:10]} 28. Qc2 {[%emt 0:00:04]} g4 {[%emt 0:01:57]} 29. Rf1 {[%emt 0:01:36]} d4 {[%emt 0:05:30]} 30. e6 {[%emt 0:07:01]} f5 {[%emt 0:01:06] [#]} 31. Ne5 {[%emt 0:01:15]} ({Much worse is} 31. Nxc5 Rc8 32. b4 Qxb4 33. Qxf5 Qxc5 $11) (31. Qc4 $1 $16) 31... gxf3+ $11 {[%emt 0:02:58]} 32. Rxf3 {[%emt 0:03:11]} Qe4 {[%emt 0:01:31]} 33. Nd3 {[%emt 0:00:05]} Qxe6 {[%emt 0:00:48]} 34. Nf4 {[%emt 0:00:47]} Qf7 {[%emt 0:01:16]} 35. Nd3 {[%emt 0:01:51]} Qd5 {[%emt 0:00:44]} 36. Nf4 {[%emt 0:00:16]} Qf7 {[%emt 0:00:07]} 37. Qe2 {[%emt 0:01:06]} Bg5 {[%emt 0:00:58]} 38. Qxa6 {[%emt 0:00:27] And now Ne6 would win.} Bxf4 {[%emt 0:01:20]} 39. Rxf4 {[%emt 0:00:07][%mdl 4096] Endgame KQR-KQR} Qd5+ {[%emt 0:00:52]} 40. Kh3 {[%emt 0:00:00]} Kg7 {[%emt 0:00:00] [#] Inhibits Qg6+. Strongly threatening ...d3.} 41. Qd3 {[%emt 0:09:41]} Rb8 {[%emt 0:15:06]} 42. Rxf5 {[%emt 0:05:09]} Rxb3 {[%emt 0:04:10] ...Qe6 is the strong threat.} (42... Qd7 {is more complex.} 43. Qf3 Rxb3 44. Qg4+ Kh7) 43. Rxd5 {[%emt 0:01:14]} Rxd3 {[%emt 0:00:05]} 44. Rxc5 {[%emt 0:00:05] Black must now prevent Kg4. KR-KR} Ra3 {[%emt 0:00:16]} 45. a5 {[%emt 0:01:01] Hoping for Kg4.} d3 {[%emt 0:00:32]} 46. Rd5 {[%emt 0:00:53]} d2 {[%emt 0:00:15]} 47. Rxd2 {[%emt 0:00:17]} (47. Kh4 {feels hotter.} Ra4+ 48. g4 Ra2 49. Rd6) 47... Rxa5 {[%emt 0:00:05]} 48. Kg4 {[%emt 0:00:05]} Ra4+ {[%emt 0:01:44]} 49. Kf5 {[%emt 0:00:05]} Ra5+ {[%emt 0:00:07]} 50. Ke4 {[%emt 0:00:20]} Ra4+ {[%emt 0:04:49]} 51. Rd4 {[%emt 0:00:22]} Ra2 {[%emt 0:01:11]} 52. h3 {[%emt 0:00:07][%cal Bh2h3,Bh3h4][%mdl 32]} Ra6 {[%emt 0:00:34]} 53. Ke5 {[%emt 0:00:20]} Ra5+ {[%emt 0:00:23]} 54. Rd5 {[%emt 0:00:19]} Ra3 {[%emt 0:00:16]} 55. Kf4 {[%emt 0:00:04]} Ra6 {[%emt 0:00:29]} 56. h4 {[%emt 0:01:30]} Kg6 {[%emt 0:00:55]} 57. Ke5 {[%emt 0:00:38]} Ra4 {[%emt 0:03:41] The position is equal.} 58. Rd6+ {[%emt 0:00:04]} Kh5 {[%emt 0:00:42]} 59. Kf5 {[%emt 0:00:50]} Ra5+ {[%emt 0:02:25]} 60. Kf4 {[%emt 0:02:22] Threatening mate with g4+.} Rf5+ {[%emt 0:00:52]} 61. Ke4 {[%emt 0:00:24] White wants to mate with g4+.} Rf1 {[%emt 0:01:21]} 62. Rd8 {[%emt 0:00:37]} Rf7 {[%emt 0:00:28]} 63. Ke3 {[%emt 0:00:26]} Kg4 {[%emt 0:00:46]} 64. Rg8+ {[%emt 0:00:31]} Kh5 {[%emt 0:00:05]} 65. Rh8 {[%emt 0:01:45]} Kg4 {[%emt 0:00:46]} 66. Rg8+ {[%emt 0:00:04] Weighted Error Value: White=0.05 (flawless) /Black=0.03 (flawless)} 1/2-1/2

[Event "Prague Festival-Challengers 2022"]
[Site "Prague"]
[Date "2022.06.16"]
[Round "8.4"]
[White "Pechac, Jergus"]
[Black "Krzyzanowski, Marcin"]
[Result "0-1"]
[ECO "E47"]
[WhiteElo "2597"]
[BlackElo "2535"]
[Annotator "TA"]
[PlyCount "106"]
[EventDate "2022.06.07"]
[EventType "tourn"]
[EventCountry "CZE"]
[SourceTitle "playchess.com"]
[Source "ChessBase"]
[SourceQuality "1"]
[TimeControl "40/5400+30:1800+30"]

{[%evp 9,106,14,25,16,12,3,14,0,-16,-22,5,16,1,6,12,0,-2,-8,-6,-7,-9,-9,-7,-47,-39,-55,-22,-15,0,0,0,0,0,-15,-17,-18,0,0,0,0,0,0,0,0,0,0,0,0,0,0,37,35,9,0,0,0,0,-83,0,0,225,192,205,0,0,0,0,0,0,0,0,-343,-354,-355,-350,-358,-345,-352,-360,-842,-832,-4056,-764,-4132,-1327,-29958,-29951,-5096,-1624,-1940,-1095,-1834,-1718,-1272,-1231,-6215,-6215,-1718,-925]} 1. d4 {[%emt 0:00:04]} Nf6 {[%emt 0:00:06]} 2. c4 {[%emt 0:00:07]} e6 {[%emt 0:00:05]} 3. Nc3 {[%emt 0:00:29]} Bb4 {[%emt 0:00:08]} 4. e3 {[%emt 0:00:05]} O-O {[%emt 0:00:08]} 5. Bd3 {[%emt 0:00:04]} Re8 {[%emt 0:00:09]} 6. Nf3 {[%emt 0:00:54] E47: Nimzo-Indian: Rubinstein: 5 Bd3 without ...d5.} Bxc3+ {[%emt 0:00:25]} 7. bxc3 {[%emt 0:00:09]} d6 {[%emt 0:00:03]} 8. e4 {[%emt 0:00:58] The position is equal.} e5 {[%emt 0:00:07]} 9. O-O {[%emt 0:00:12] [#]} Bg4 $146 {[%emt 0:02:16][%cal Bc8g4,Bg4h5,Bh5g6,Bg6h7][%mdl 32]} ({Predecessor:} 9... exd4 10. cxd4 Nxe4 11. Re1 Nf6 12. Rxe8+ Qxe8 13. h3 Nbd7 14. Bb2 d5 15. Qb3 Qd8 {½-½ (22) Kolpak,S (2311)-Jugl,P (2310) ICCF email 2019}) 10. h3 {[%emt 0:02:39]} Bh5 {[%emt 0:00:43]} 11. Re1 {[%emt 0:11:30]} Nbd7 {[%emt 0:02:55]} 12. g4 {[%emt 0:01:43]} Bg6 {[%emt 0:00:47]} 13. Bg5 {[%emt 0:00:54]} Nf8 {[%emt 0:06:37]} 14. d5 {[%emt 0:05:47]} h6 {[%emt 0:01:52]} 15. Bh4 {[%emt 0:00:34]} Bh7 {[%emt 0:02:09]} 16. Qc1 {[%emt 0:03:47]} Ng6 {[%emt 0:01:30]} 17. Bg3 {[%emt 0:00:13]} Nd7 {[%emt 0:00:16]} 18. h4 {[%emt 0:05:01]} Nc5 {[%emt 0:03:36]} 19. Bc2 {[%emt 0:00:48]} Qc8 {[%emt 0:08:43]} 20. Nh2 {[%emt 0:02:26]} b6 {[%emt 0:02:08]} 21. f3 {[%emt 0:06:57]} Qa6 {[%emt 0:02:41]} 22. h5 {[%emt 0:00:13]} Nh8 {[%emt 0:11:36][%cal Bg6h8,Bh8f7,Bf7g5][%mdl 32]} 23. g5 {[%emt 0:00:39]} hxg5 {[%emt 0:00:31]} 24. Qxg5 {[%emt 0:00:08] Hoping for Ng4.} f6 {[%emt 0:01:33]} 25. Qd2 {[%emt 0:05:44]} Nf7 {[%emt 0:10:06]} 26. Ng4 {[%emt 0:01:25][%cal Bh2g4,Bg4h6,Bh6f5][%mdl 32]} Ng5 {[%emt 0:03:11] Pair of Knights!} 27. Kg2 {[%emt 0:09:36]} Qxc4 {[%emt 0:05:39]} 28. Bh4 {[%emt 0:03:10]} Rf8 {[%emt 0:03:20][%cal Rc5e4]} 29. h6 {[%emt 0:10:20]} gxh6 {[%emt 0:05:35]} 30. Nxh6+ {[%emt 0:00:55]} Kh8 {[%emt 0:00:06]} 31. Bxg5 {[%emt 0:00:42]} fxg5 {[%emt 0:00:07]} 32. Rh1 {[%emt 0:00:22]} Rf4 {[%emt 0:04:01][%cal Rc5e4]} 33. Rh5 {[%emt 0:07:00] [#]} (33. Nf5 Rf8 34. Ne3 Qb5 $15) (33. Ng4 $11) 33... Raf8 {[%emt 0:04:10]} (33... Kg7 $1 $17 {[%cal Rc5e4] White must now prevent ...Nxe4!} 34. Nf5+ Bxf5 35. exf5 Re8 36. Rxg5+ Kf6 37. Rg6+ Ke7) 34. Rah1 $11 {[%emt 0:05:06]} (34. Nf5 g4 35. Kh1 Rf7 $17) 34... Qxa2 $2 {[%emt 0:06:09]} (34... Rxf3 $2 35. Nf5 R8xf5 36. Rxh7+ Kg8 37. Rh8+ Kf7 38. R1h7+ Kf6 39. Rf8+ (39. exf5 Qg4+ 40. Kh1 Rf1+ 41. Kh2 Qg1+ 42. Kh3 Rf3#) 39... Kg6 40. exf5+ $18) (34... Kg7 $1 $11 {and Black stays safe.} 35. Rxg5+ Kf6) 35. Nf5 $1 $18 {[%emt 0:01:54]} Rf7 {[%emt 0:00:08] aiming for ...g4.} 36. Kg3 {[%emt 0:00:30] Inhibits g4.} (36. Rxg5 $18 {Threatens to win with Kg3.} Nd7 37. Rh3) 36... g4 $1 $11 {[%emt 0:06:33]} 37. Rxh7+ {[%emt 0:14:19]} Rxh7 {[%emt 0:00:08] Chess con chili.} 38. Rxh7+ {[%emt 0:00:05][%mdl 64] Remove Defender} Kxh7 {[%emt 0:00:04][%cal Bh8h7,Bh7g8,Bg8g7][%mdl 32]} 39. Qh2+ {[%emt 0:00:09]} Kg8 {[%emt 0:00:05]} 40. Ne7+ $2 {[%emt 0:00:00][%mdl 8192]} (40. Qh5 $11 Rxf3+ 41. Kxg4 Rxf5 42. exf5 Qxd5 43. Qe8+ Kg7 44. Qe7+ Kh8 45. Qf6+ Kh7 46. Qg6+ Kh8 47. Qf6+ (47. Qh5+ Kg8 $11) 47... Kh7 48. Qg6+ Kh8 49. Qf6+ (49. Qh5+ Kg8 $11)) 40... Kg7 $19 {[%emt 0:00:00]} 41. Nf5+ {[%emt 0:02:27] [#]} Rxf5 $1 {[%emt 0:18:18]} 42. exf5 {[%emt 0:00:27] White wants to mate with f6+.} Qxd5 {[%emt 0:00:43]} 43. fxg4 {[%emt 0:00:16][%cal Of5f6][%mdl 4096] Endgame KQB-KQN} e4 {[%emt 0:00:50][%cal Be5e4,Be4e3][%mdl 32]} 44. Kh4 $2 {[%emt 0:03:38]} (44. Qh4 Qe5+ 45. Kg2) 44... e3 {[%emt 0:09:36]} 45. g5 {[%emt 0:07:58]} Nd3 {[%emt 0:04:08]} (45... Qf3 $142 46. Qg1 e2 47. f6+ Kg8) 46. f6+ {[%emt 0:01:39] [#]} Kf7 $1 {[%emt 0:01:32]} ({And not} 46... Kg6 47. Qg3 Qe4+ 48. Qg4 Qh1+ 49. Qh3 Qxh3+ 50. Kxh3 Kxg5 51. Bxd3 Kxf6 52. Kg3 $15) 47. Bb3 {[%emt 0:16:56]} Qxb3 {[%emt 0:00:44]} 48. Kg3 {[%emt 0:00:02]} Ne5 {[%emt 0:05:25] Black is clearly winning.} 49. Qh7+ {[%emt 0:03:17]} Ke6 {[%emt 0:00:05]} 50. Qg8+ {[%emt 0:00:39]} Nf7 {[%emt 0:00:06] ...Kf5 is the strong threat.} 51. Qc8+ {[%emt 0:00:22]} Ke5 {[%emt 0:00:37]} 52. Qxc7 {[%emt 0:00:39]} Nxg5 {[%emt 0:00:39] ( -> ...e2)} 53. Qg7 {[%emt 0:00:30]} Ne4+ {[%emt 0:00:30] What a bad dream for White.  Weighted Error Value: White=0.95/Black=0.37} 0-1